bitfinex-derivatives/quotes_ETHF0:USTF0_20260306
["timestamp","ask_amount","ask_price","bid_price","bid_amount"]
[1772763450573,5.58969781,2090.1,2089.0,0.63683621]
[1772763450877,6.27,2090.2,2089.0,0.63683621]
[1772763451176,5.58922802,2090.1,2089.0,0.63683621]
[1772763451478,6.27,2090.2,2089.0,0.63683621]
[1772763451677,5.5890248,2090.1,2089.0,0.63683621]
[1772763451975,6.27,2090.2,2089.0,0.63683621]
[1772763452274,5.5890248,2090.1,2089.0,0.63683621]
[1772763452475,6.27,2090.2,2089.0,0.63683621]
[1772763452674,5.58886751,2090.1,2089.0,0.63683621]
[1772763452875,6.27,2090.2,2089.0,0.63683621]
[1772763453072,5.58886751,2090.1,2089.0,0.63683621]
[1772763453274,6.27,2090.2,2089.0,0.63683621]
[1772763453578,5.58874435,2090.1,2089.0,0.63683621]
[1772763453875,6.27,2090.2,2089.0,0.63683621]
[1772763454077,5.58874435,2090.1,2089.0,0.63683621]
[1772763454276,6.27,2090.2,2089.0,0.63683621]
[1772763454476,5.58866213,2090.1,2089.0,0.63683621]
[1772763454679,6.27,2090.2,2089.0,0.63683621]
[1772763454879,5.58866213,2090.1,2089.0,0.63683621]
[1772763455077,6.27,2090.2,2089.0,0.63683621]
[1772763455277,5.59043295,2090.1,2089.0,0.63683621]
[1772763455577,6.27,2090.2,2089.0,0.63683621]
[1772763455779,5.59043295,2090.1,2089.0,0.63683621]
[1772763456078,6.27,2090.2,2089.0,0.63683621]
[1772763456276,5.59045077,2090.1,2089.0,0.63683621]
[1772763456576,6.27,2090.2,2089.0,0.63683621]
[1772763456778,5.59045077,2090.1,2089.0,0.63683621]
[1772763456978,4.00461625,2090.4,2088.9,41.03934]
[1772763456979,4.00461625,2090.4,2089.2,0.63574889]
[1772763457176,11.86039987,2090.3,2089.4,0.63574889]
[1772763457477,6.27,2090.3,2089.4,0.63574889]
[1772763461378,11.47592815,2090.2,2088.8,0.63682638]
[1772763461576,6.27,2090.3,2088.6,7.34881195]
[1772763461577,4.24389625,2089.5,2088.6,0.00554043]
[1772763461776,15.8651544,2089.4,2088.6,0.00554043]
[1772763462079,0.23931,2089.2,2087.9,0.63682638]
[1772763462279,5.59153815,2089.1,2087.9,0.63682638]
[1772763462472,11.86053815,2089.0,2087.9,0.63682638]
[1772763462677,6.269,2089.0,2087.9,0.63682638]
[1772763462877,6.269,2089.0,2087.9,0.64027885]
[1772763463382,6.269,2088.9,2087.9,0.64027885]
[1772763468282,6.27,2089.1,2087.9,0.64027885]
[1772763470183,4.00974723,2089.5,2087.9,0.64027885]
[1772763470386,5.59818694,2089.4,2088.1,0.61757133]
[1772763470684,6.27613098,2089.5,2088.3,0.61757133]
[1772763472092,0.00513098,2089.5,2088.3,0.61757133]
[1772763478299,0.00513098,2089.5,2088.5,0.61285083]
[1772763481505,6.12586,2089.4,2088.0,0.6143478]
[1772763481698,0.23931,2089.2,2088.0,0.6143478]
[1772763481905,0.23933,2089.0,2088.0,0.6143478]
[1772763483211,0.23933,2089.0,2087.9,0.61705234]
[1772763483406,5.59891777,2088.9,2087.9,0.00345247]
[1772763483611,0.23937,2088.7,2087.9,0.00345247]
[1772763484209,5.59790082,2088.6,2087.5,0.61359987]
[1772763484412,11.72655082,2088.5,2087.3,0.61359987]
[1772763484613,5.59790082,2088.4,2087.3,0.61359987]
[1772763485015,0.23941,2088.3,2087.3,0.61359987]
[1772763485214,0.23941,2088.3,2087.3,0.61947131]
[1772763485918,6.271,2088.2,2087.3,0.61947131]
[1772763486614,6.27,2088.3,2087.3,0.61947131]
[1772763488414,6.271,2088.6,2087.3,0.61947131]
[1772763488614,5.64814296,2088.5,2087.3,0.61947131]
[1772763488816,5.64814296,2088.4,2087.3,0.61947131]
[1772763489016,8.47392093,2088.6,2087.3,0.61947131]
[1772763489211,5.64791201,2088.5,2087.3,0.61947131]
[1772763489408,5.64791201,2088.4,2087.3,0.61947131]
[1772763489609,8.47392093,2088.6,2087.3,0.61947131]
[1772763489818,5.64929459,2088.5,2087.3,0.61947131]
[1772763490117,2.20292093,2088.3,2087.3,0.61947131]
[1772763490517,6.271,2088.4,2087.3,0.61947131]
[1772763492216,8.47392093,2088.6,2087.3,0.61947131]
[1772763492418,5.65310864,2088.5,2087.3,0.61947131]
[1772763492613,0.23939,2088.5,2087.3,0.61947131]
[1772763493313,4.23078551,2089.1,2087.4,0.63399576]
[1772763493518,5.65095179,2089.0,2087.4,0.63399576]
[1772763493817,0.23935,2088.8,2087.4,0.63399576]
[1772763494018,11.92195179,2088.7,2087.4,0.63399576]
[1772763494214,6.271,2088.7,2087.4,0.63399576]
[1772763494420,7.85460217,2088.6,2087.4,0.63399576]
[1772763494617,5.65191232,2088.5,2087.4,0.63399576]
[1772763494816,2.20292093,2088.6,2087.4,0.63399576]
[1772763495011,5.65180962,2088.5,2087.4,0.63399576]
[1772763495217,2.20292093,2088.3,2087.3,0.00587144]
[1772763495719,2.20292093,2088.3,2087.3,0.64069324]
[1772763496921,3.99145551,2088.7,2087.3,0.64069324]
[1772763497120,6.271,2088.3,2087.3,0.64069324]
[1772763497712,6.19437644,2088.8,2087.3,0.64069324]
[1772763497913,11.91998005,2088.7,2087.3,0.64069324]
[1772763498220,5.64898005,2088.6,2087.3,0.64069324]
[1772763498421,6.271,2088.7,2087.3,0.64069324]
[1772763498821,5.64851478,2088.6,2087.3,0.64069324]
[1772763499021,7.85143571,2088.5,2087.3,0.64069324]
[1772763499222,2.20292093,2088.5,2087.3,0.64069324]
[1772763499818,2.44232093,2088.5,2087.3,0.64069324]
[1772763500018,5.64871014,2088.4,2087.3,0.64069324]
[1772763500218,2.44232093,2088.5,2087.3,0.64069324]
[1772763500426,0.23941,2088.3,2087.3,0.64069324]
[1772763500620,8.47392093,2088.2,2087.3,0.00587144]
[1772763502720,2.20292093,2087.9,2087.3,0.00587144]
[1772763503026,2.20292093,2087.9,2086.9,0.63132772]
[1772763503221,0.23947,2087.8,2086.9,0.63132772]
[1772763503416,0.23949,2087.6,2085.6,0.63132772]
[1772763503628,2.20292093,2087.3,2085.8,0.63132772]
[1772763503827,6.271,2087.2,2085.8,0.63609092]
[1772763504626,2.20292093,2087.0,2085.8,0.63609092]
[1772763504821,2.20292093,2086.7,2085.8,0.63609092]
[1772763505026,6.271,2086.7,2085.8,0.63609092]
[1772763505221,6.271,2086.9,2085.8,0.63609092]
[1772763505727,6.271,2087.1,2085.8,0.63609092]
[1772763505927,2.20292093,2087.0,2085.8,0.63609092]
[1772763507625,6.271,2087.1,2085.8,0.63609092]
[1772763507626,2.20292093,2086.7,2085.8,0.63609092]
[1772763507829,6.272,2086.6,2085.8,0.63609092]
[1772763508327,6.272,2086.6,2085.8,0.0047632]
[1772763510734,6.272,2086.6,2085.8,0.62672651]
[1772763511029,2.20292093,2087.0,2085.8,0.62672651]
[1772763511425,6.272,2086.9,2085.8,0.62672651]
[1772763511931,2.20292093,2086.7,2085.8,0.63363209]
[1772763512730,0.23961,2086.6,2085.8,0.0047632]
[1772763513621,0.23961,2086.6,2085.8,0.62848661]
[1772763514424,0.23961,2086.6,2085.8,0.0047632]
[1772763514730,6.272,2086.5,2085.8,0.0047632]
[1772763516429,2.20292093,2086.4,2085.8,0.0047632]
[1772763516625,2.20292093,2086.4,2085.6,0.61789218]
[1772763517131,2.20292093,2086.4,2085.3,0.61280883]
[1772763517631,2.20292093,2086.4,2085.3,0.61675585]
[1772763519831,6.272,2086.4,2085.3,0.61675585]
[1772763520329,6.272,2086.4,2085.5,0.61257185]
[1772763520628,2.20292093,2087.0,2085.5,0.61257185]
[1772763520934,6.272,2086.6,2085.5,0.61257185]
[1772763522529,6.272,2086.7,2085.5,0.61257185]
[1772763522730,6.272,2086.7,2085.7,0.61146602]
[1772763523126,2.20292093,2087.0,2085.7,0.61146602]
[1772763523330,6.272,2086.9,2085.7,0.61146602]
[1772763523735,0.23954,2087.2,2085.7,0.61146602]
[1772763523931,2.20667562,2087.3,2085.9,0.60892945]
[1772763524130,6.272,2087.2,2085.9,0.60892945]
[1772763524831,0.01300164,2087.1,2085.9,0.60892945]
[1772763525928,6.272,2087.2,2086.1,0.59082128]
[1772763526127,0.01300164,2086.9,2086.1,0.59082128]
[1772763526531,0.01300164,2086.9,2085.9,0.59082128]
[1772763528037,0.19651791,2086.6,2085.6,0.53894912]
[1772763528242,0.19651791,2086.4,2085.6,0.53894912]
[1772763528643,0.19651791,2086.4,2085.4,0.53894912]
[1772763528945,0.19651791,2086.3,2085.4,0.53894912]
[1772763530045,0.1976106,2086.1,2085.2,0.53894912]
[1772763530242,0.1976106,2085.9,2085.2,0.53894912]
[1772763533046,0.1976106,2085.9,2085.0,0.53894912]
[1772763533242,0.1976106,2085.9,2084.7,40.8]
[1772763533243,0.1939431,2085.7,2084.8,0.53894912]
[1772763534140,0.1939431,2085.7,2084.8,0.54460105]
[1772763534345,0.19871131,2085.7,2084.8,0.54460105]
[1772763535247,6.47071131,2085.7,2084.8,0.54460105]
[1772763535949,0.00476821,2085.7,2084.8,0.54460105]
[1772763537051,0.1838821,2085.7,2084.8,0.54460105]
[1772763540247,0.00476821,2085.7,2084.8,0.54460105]
[1772763540448,0.18605702,2085.7,2084.8,0.54460105]
[1772763542555,0.00476821,2085.7,2084.8,0.54460105]
[1772763542750,0.18058327,2086.1,2084.8,0.54460105]
[1772763542947,0.18375043,2086.3,2085.1,0.56945283]
[1772763543846,0.18916891,2086.3,2085.2,0.23977]
[1772763544048,0.18916891,2086.3,2085.3,0.56945283]
[1772763544849,0.00541848,2086.3,2085.3,0.56945283]
[1772763545957,0.1641022,2086.3,2085.3,0.56945283]
[1772763547458,0.00541848,2086.3,2085.3,0.56945283]
[1772763548155,0.15707813,2086.2,2085.3,0.56945283]
[1772763552355,0.00541848,2086.3,2085.3,0.56945283]
[1772763552859,0.16103135,2086.3,2085.3,0.56945283]
[1772763553254,4.15909108,2086.9,2085.4,0.56945283]
[1772763553458,0.1610847,2086.7,2085.4,0.56945283]
[1772763553757,0.1610847,2086.7,2085.6,0.56945283]
[1772763554358,0.16710326,2086.7,2085.6,0.56945283]
[1772763561065,0.16261416,2086.5,2085.6,0.56945283]
[1772763561365,0.16261416,2086.3,2085.6,0.56945283]
[1772763561566,0.16261416,2086.3,2085.1,0.56945283]
[1772763563462,0.1625259,2086.1,2085.1,0.56945283]
[1772763567964,0.15474893,2086.2,2085.1,0.56945283]
[1772763568362,0.15474893,2086.4,2085.3,0.56945283]
[1772763568758,0.15460844,2086.2,2085.3,0.56945283]
[1772763569166,0.15219309,2086.0,2085.3,0.56945283]
[1772763569558,4.00342486,2086.4,2085.3,0.56945283]
[1772763569559,0.15219309,2086.3,2085.3,0.56945283]
[1772763569762,0.15219309,2086.1,2085.3,0.56945283]
[1772763575473,0.18486082,2086.3,2085.3,0.56945283]
[1772763575773,6.45786082,2086.4,2085.3,0.56945283]
[1772763575973,5.58617436,2086.3,2085.3,0.56945283]
[1772763576173,0.18486082,2086.4,2085.3,0.56945283]
[1772763576374,5.77135308,2086.3,2085.3,0.56945283]
[1772763576575,0.18486082,2086.3,2085.3,0.56945283]
[1772763578973,0.18299723,2086.5,2085.3,0.56945283]
[1772763579174,5.76984791,2086.4,2085.3,0.56945283]
[1772763579374,0.18299723,2086.4,2085.3,0.56945283]
[1772763579576,5.58679746,2086.3,2085.3,0.56945283]
[1772763579878,0.18299723,2086.6,2085.5,0.54939793]
[1772763580273,0.18299723,2086.6,2085.7,0.54939793]
[1772763580477,6.27901856,2086.7,2085.7,0.54939793]
[1772763580478,0.18901579,2086.7,2085.7,0.54939793]
[1772763580877,0.18901579,2086.7,2085.8,40.8]
[1772763581082,0.18901579,2086.7,2085.9,0.54939793]
[1772763582282,0.18546259,2086.5,2085.3,0.54939793]
[1772763582482,0.19148115,2086.7,2085.5,0.54939793]
[1772763582677,0.19148115,2086.7,2085.7,0.54939793]
[1772763583984,0.19148115,2086.7,2085.9,0.54939793]
[1772763584181,0.00601856,2086.7,2085.9,0.54939793]
[1772763585077,0.19633503,2086.7,2085.9,0.54939793]
[1772763590388,0.19191564,2087.1,2086.1,0.54939793]
[1772763591494,0.19752036,2087.1,2086.1,0.54939793]
[1772763596287,0.55224395,2086.9,2085.7,0.54939793]
[1772763596489,0.55224395,2086.7,2085.7,0.54939793]
[1772763598695,0.55224395,2086.5,2085.7,0.54939793]
[1772763601198,0.59288919,2086.3,2085.7,0.54939793]
[1772763603991,0.59288919,2086.3,2085.4,0.55777494]
[1772763605698,0.59288919,2086.1,2085.1,0.55777494]
[1772763605892,0.59288919,2085.9,2085.1,0.55777494]
[1772763606301,0.59288919,2086.0,2085.1,0.55777494]
[1772763608202,0.59288919,2085.8,2085.1,0.55777494]
[1772763608793,0.59288919,2085.8,2085.0,0.55777494]
[1772763609697,0.59288919,2085.6,2084.8,0.00565193]
[1772763609899,0.59288919,2085.6,2083.6,0.23994]
[1772763609900,0.59288919,2085.3,2084.0,0.55777494]
[1772763610104,16.41743144,2085.5,2084.0,0.55777494]
[1772763610105,12.3718989,2085.2,2084.0,0.55777494]
[1772763610299,0.59288919,2085.1,2084.1,0.55777494]
[1772763610902,0.59288919,2085.1,2084.1,0.5639613]
[1772763611099,6.86688919,2085.3,2084.1,0.5639613]
[1772763611297,0.59288919,2085.2,2084.1,0.5639613]
[1772763614604,0.59288919,2085.1,2084.1,0.5639613]
[1772763614800,0.59288919,2085.0,2084.1,0.5639613]
[1772763615604,2.80250095,2084.8,2084.1,0.00618636]
[1772763615805,0.59288919,2084.7,2084.1,0.5639613]
[1772763615999,0.59288919,2084.7,2084.1,0.00618636]
[1772763616403,0.59288919,2084.7,2084.0,0.55777494]
[1772763616710,0.59288919,2084.4,2083.3,0.55777494]
[1772763617212,6.275,2084.6,2083.3,0.55777494]
[1772763617213,0.59288919,2084.1,2083.3,0.55777494]
[1772763617510,0.59844942,2084.1,2083.3,0.56114765]
[1772763618011,0.59288919,2083.9,2083.3,0.00337271]
[1772763618805,0.59288919,2083.9,2083.3,0.56114765]
[1772763619204,0.59288919,2083.9,2083.3,0.00337271]
[1772763619609,0.59288919,2083.9,2083.3,0.56114765]
[1772763620604,0.59288919,2083.9,2082.5,40.8]
[1772763620605,0.59288919,2083.8,2082.8,0.55777494]
[1772763620812,0.59288919,2083.6,2082.8,0.55777494]
[1772763621607,0.59288919,2083.6,2082.8,0.56178997]
[1772763621908,0.59288919,2083.6,2082.8,0.00401503]
[1772763622109,0.59288919,2083.5,2082.8,0.00401503]
[1772763622305,0.59288919,2083.5,2082.4,1.42485602]
[1772763622505,6.276,2083.7,2082.4,1.42485602]
[1772763622506,0.59288919,2083.2,2082.4,1.42485602]
[1772763622802,0.59288919,2083.9,2082.6,0.79784494]
[1772763623006,0.59288919,2083.9,2082.7,0.55777494]
[1772763623206,0.59288919,2083.9,2082.7,0.56272383]
[1772763623608,0.59288919,2083.6,2082.7,0.56272383]
[1772763623803,0.59288919,2083.6,2082.7,0.00494889]
[1772763624010,0.59288919,2083.6,2082.8,0.55777494]
[1772763624312,0.59288919,2083.6,2082.7,0.00494889]
[1772763624810,0.59288919,2083.6,2082.7,0.56272383]
[1772763625006,0.59288919,2083.4,2082.4,0.86708108]
[1772763625210,0.59288919,2083.3,2082.5,0.55777494]
[1772763625506,0.59288919,2083.0,2082.4,0.86708108]
[1772763625808,0.59288919,2083.3,2082.5,0.55777494]
[1772763626107,6.86988919,2083.3,2082.5,0.56279822]
[1772763626312,0.59288919,2083.2,2082.5,0.00502328]
[1772763628212,0.59288919,2083.0,2082.5,0.00502328]
[1772763628712,6.87332015,2083.3,2082.5,0.55291609]
[1772763629006,0.60188038,2084.1,2082.7,2.75750457]
[1772763629206,0.60188038,2084.1,2082.8,0.54789281]
[1772763630010,0.60188038,2084.1,2083.0,0.54120813]
[1772763631416,0.00556023,2084.1,2083.2,0.54120813]
[1772763632312,0.58393189,2085.2,2083.7,2.20961176]
[1772763632508,0.58393189,2085.2,2083.8,0.54120813]
[1772763632703,6.277,2085.4,2083.8,0.54120813]
[1772763632704,0.58393189,2084.9,2083.8,0.54120813]
[1772763633112,0.58393189,2085.3,2083.8,0.54120813]
[1772763633308,0.58393189,2085.2,2083.8,0.54120813]
[1772763634416,0.58393189,2085.2,2084.0,0.54120813]
[1772763634612,0.58393189,2085.2,2084.0,0.54504549]
[1772763635214,6.2827091,2085.3,2084.0,0.54504549]
[1772763635614,0.0057091,2085.3,2084.2,2.75081989]
[1772763635915,0.0057091,2085.3,2084.3,0.54120813]
[1772763637016,0.58964099,2085.3,2084.3,0.54120813]
[1772763637512,0.58393189,2085.9,2084.6,0.54120813]
[1772763638017,0.58393189,2086.1,2084.9,0.54120813]
[1772763638513,0.5895923,2086.1,2084.9,0.54120813]
[1772763638814,0.00566041,2086.1,2085.2,0.54120813]
[1772763641111,0.00566041,2086.1,2085.4,0.54120813]
[1772763642014,0.5895923,2086.1,2085.4,0.54120813]
[1772763644015,0.5895923,2086.1,2084.9,0.54120813]
[1772763644417,0.5895923,2086.1,2085.1,0.54120813]
[1772763645919,0.5895923,2086.1,2084.9,0.54120813]
[1772763646817,0.58393189,2085.8,2084.9,0.54120813]
[1772763647016,0.58393189,2085.8,2084.2,0.54120813]
[1772763647422,0.58393189,2085.8,2084.4,0.54120813]
[1772763647720,0.58393189,2085.5,2084.4,0.54120813]
[1772763648121,0.58393189,2085.5,2084.2,0.54120813]
[1772763648523,0.58393189,2085.2,2084.2,0.54120813]
[1772763649225,0.58393189,2085.2,2084.0,0.54504549]
[1772763651428,0.58393189,2085.6,2084.3,0.54120813]
[1772763651921,5.89925,2085.0,2083.8,40.8]
[1772763652121,5.89925,2085.0,2082.8,12.3503169]
[1772763652122,2.71829258,2084.3,2082.8,0.54120813]
[1772763652328,0.50868082,2084.3,2083.1,0.54120813]
[1772763652527,0.50868082,2084.3,2083.3,0.54120813]
[1772763653029,0.51413827,2084.3,2083.3,0.54530368]
[1772763655626,0.00545745,2084.3,2083.3,0.54530368]
[1772763656331,0.52489819,2085.1,2083.7,0.54120813]
[1772763657228,0.52947222,2085.1,2083.7,0.54120813]
[1772763659130,0.52947222,2085.1,2083.9,0.54120813]
[1772763659331,0.52947222,2085.1,2084.3,0.54120813]
[1772763659332,0.00457403,2085.1,2084.3,0.54120813]
[1772763659525,0.52865114,2085.5,2084.3,0.54120813]
[1772763659727,0.52865114,2085.5,2084.5,0.56506069]
[1772763660428,0.52882939,2085.8,2084.5,0.56506069]
[1772763660634,0.53470444,2085.8,2084.5,0.56506069]
[1772763662034,0.53053552,2085.6,2084.5,0.56506069]
[1772763662236,0.53053552,2084.6,2083.4,0.56506069]
[1772763662733,0.53053552,2084.6,2083.6,0.56506069]
[1772763663937,0.53447577,2084.3,2083.3,0.56915624]
[1772763664236,0.53447577,2084.1,2083.3,0.00409555]
[1772763664434,0.53447577,2083.9,2083.3,0.00409555]
[1772763664736,0.53447577,2083.9,2083.3,0.56915624]
[1772763664936,0.53447577,2083.9,2083.3,0.00409555]
[1772763665738,0.53447577,2083.9,2082.7,0.56506069]
[1772763666746,0.53447577,2083.9,2082.7,0.57029479]
[1772763667144,0.53047433,2083.7,2082.7,0.57029479]
[1772763667540,0.53047433,2083.7,2082.7,0.0052341]
[1772763667850,0.53047433,2083.7,2082.7,0.57029479]
[1772763668050,0.53047433,2083.5,2082.7,0.57029479]
[1772763669344,0.52898641,2083.4,2082.7,0.57029479]
[1772763669545,6.277,2083.4,2082.7,0.57029479]
[1772763670751,0.52898641,2083.5,2082.7,0.57029479]
[1772763670951,6.80537993,2083.7,2082.7,0.57029479]
[1772763671251,0.52837993,2083.6,2082.7,0.57029479]
[1772763673142,6.277,2083.7,2082.7,0.57029479]
[1772763673549,0.53014619,2083.6,2082.7,0.57029479]
[1772763673754,0.53014619,2083.6,2082.4,41.66708108]
[1772763673755,0.52491209,2083.4,2082.4,1.43214177]
[1772763674950,0.52491209,2083.4,2082.4,1.43694902]
[1772763675451,0.52491209,2083.4,2082.5,0.56506069]
[1772763675648,6.80959047,2083.3,2082.5,0.56506069]
[1772763675849,0.53159047,2083.2,2082.5,0.56506069]
[1772763676453,6.80959047,2083.1,2082.5,0.56506069]
[1772763676950,6.278,2083.3,2082.5,0.56506069]
[1772763677156,6.8068554,2083.3,2082.5,0.56506069]
[1772763677655,0.5288554,2083.2,2082.5,0.56506069]
[1772763678853,6.278,2083.5,2082.5,0.56506069]
[1772763679059,0.52533271,2083.5,2082.5,0.56506069]
[1772763680560,6.80333271,2083.5,2082.5,0.56506069]
[1772763681257,4.00342486,2084.1,2082.5,0.56506069]
[1772763681454,0.51035316,2083.9,2082.5,0.56506069]
[1772763682656,6.278,2084.0,2082.5,0.56506069]
[1772763682657,0.51035316,2083.7,2082.5,0.56506069]
[1772763683562,0.51369833,2083.5,2082.5,0.56506069]
[1772763685366,0.51098043,2083.3,2082.5,0.56506069]
[1772763686767,0.51098043,2083.5,2082.5,0.56506069]
[1772763690570,0.51010132,2083.4,2082.5,0.56506069]
[1772763690774,0.51010132,2083.2,2082.4,0.87188833]
[1772763690974,0.50950371,2083.0,2082.4,0.87188833]
[1772763691172,0.50950371,2082.9,2082.5,0.55476747]
[1772763692269,6.78750371,2082.9,2082.5,0.55476747]
[1772763692574,0.50950371,2082.8,2082.4,1.4266558]
[1772763692775,0.51511865,2082.8,2082.4,1.4266558]
[1772763692974,0.00561494,2082.8,2082.5,0.55476747]
[1772763693976,6.278,2083.0,2082.5,0.55476747]
[1772763693977,0.51329578,2082.9,2082.5,0.55476747]
[1772763694272,0.51329578,2082.7,2082.1,0.55476747]
[1772763694473,0.51329578,2082.5,2082.1,0.55476747]
[1772763694676,0.51329578,2082.5,2082.2,0.54830765]
[1772763694874,6.79129578,2082.5,2082.1,0.16066691]
[1772763695174,0.5762753,2082.4,2081.7,0.55476747]
[1772763695375,0.5762753,2082.4,2081.7,0.56024099]
[1772763695376,0.5812058,2082.4,2081.7,0.56024099]
[1772763696271,0.5762753,2082.2,2081.7,0.00547352]
[1772763696669,0.5762753,2082.2,2081.0,0.24025]
[1772763696870,0.5762753,2082.0,2081.2,0.55476747]
[1772763697066,6.278,2081.9,2081.2,0.55476747]
[1772763697274,4.00835536,2082.4,2081.2,0.55476747]
[1772763697275,6.278,2082.1,2081.2,0.55476747]
[1772763697569,6.278,2082.1,2081.2,0.55840643]
[1772763697774,6.8542753,2082.1,2081.2,0.55840643]
[1772763697969,6.278,2082.1,2081.2,0.55840643]
[1772763698368,6.278,2082.2,2081.2,0.55840643]
[1772763698868,0.5762753,2082.0,2080.6,0.55476747]
[1772763699074,0.5762753,2081.6,2080.6,0.55476747]
[1772763699277,0.5762753,2081.4,2080.6,0.55476747]
[1772763699472,0.5762753,2081.8,2080.6,0.55476747]
[1772763699666,6.8542753,2081.8,2080.6,0.55476747]
[1772763699870,0.5762753,2081.8,2080.6,0.56042141]
[1772763700271,0.5762753,2081.6,2080.6,0.56042141]
[1772763700472,0.5762753,2081.4,2080.6,0.00565394]
[1772763700672,0.5762753,2081.2,2080.6,0.00565394]
[1772763700872,0.5762753,2081.0,2080.6,0.56042141]
[1772763701072,0.5762753,2081.6,2080.6,0.56042141]
[1772763701278,0.5762753,2081.4,2080.6,0.56042141]
[1772763701474,0.5762753,2081.3,2080.6,0.56042141]
[1772763701673,6.279,2081.6,2080.6,0.56042141]
[1772763701879,6.8552753,2081.6,2080.6,0.56042141]
[1772763702074,0.5762753,2081.5,2080.6,0.56042141]
[1772763703482,0.5762753,2081.3,2080.6,0.00565394]
[1772763703683,0.5762753,2081.2,2080.6,0.56042141]
[1772763703974,6.8552753,2081.5,2080.6,0.56042141]
[1772763704174,0.5762753,2081.4,2080.6,0.56042141]
[1772763704574,0.5762753,2081.3,2080.6,0.56042141]
[1772763705776,0.5762753,2081.3,2080.6,0.00565394]
[1772763706181,0.5762753,2081.3,2080.6,0.56042141]
[1772763706379,6.28,2081.2,2080.6,0.56042141]
[1772763706574,0.5762753,2081.1,2080.6,0.00565394]
[1772763706781,5.90731,2082.1,2080.6,0.00565394]
[1772763706782,0.5762753,2081.8,2080.6,0.56042141]
[1772763706985,0.5762753,2081.6,2080.6,0.56042141]
[1772763707980,0.5762753,2081.4,2080.6,0.56042141]
[1772763708178,0.24014,2082.0,2080.6,0.56042141]
[1772763708478,0.5762753,2082.3,2080.9,0.55476747]
[1772763708878,0.5762753,2082.3,2081.1,0.55476747]
[1772763709286,6.28,2082.2,2081.1,0.55476747]
[1772763709486,0.5762753,2082.1,2081.1,0.55476747]
[1772763710689,0.5762753,2082.3,2081.1,0.55476747]
[1772763712585,0.5762753,2082.3,2081.3,0.55476747]
[1772763714289,0.5762753,2082.3,2081.5,0.55476747]
[1772763714889,0.5762753,2083.0,2081.7,2.2150896]
[1772763715099,0.5762753,2083.0,2081.8,0.55476747]
[1772763715696,0.5762753,2083.2,2081.8,0.55476747]
[1772763715891,0.58107643,2083.2,2081.8,0.55476747]
[1772763718498,0.58107643,2083.2,2082.0,0.55476747]
[1772763718695,0.00480113,2083.2,2082.3,0.55476747]
[1772763718996,0.5762753,2083.6,2082.3,0.55943607]
[1772763719900,0.5762753,2083.6,2082.5,0.54628144]
[1772763720099,0.5808412,2083.6,2082.5,0.54628144]
[1772763725309,0.5808412,2083.6,2082.7,0.54628144]
[1772763729015,0.5808412,2083.6,2082.6,40.8]
[1772763729016,0.58491359,2083.8,2083.0,0.54628144]
[1772763729209,0.58491359,2084.0,2083.0,0.54628144]
[1772763730113,0.59009216,2084.0,2083.0,0.54628144]
[1772763730916,0.59009216,2084.0,2083.2,0.54628144]
[1772763731116,0.59009216,2084.0,2083.1,40.8]
[1772763731819,0.59009216,2084.0,2083.0,0.54628144]
[1772763732613,0.58491359,2083.6,2082.6,0.54628144]
[1772763733014,0.58491359,2083.5,2082.6,0.54628144]
[1772763733213,0.58491359,2083.5,2082.6,41.34628144]
[1772763733621,0.58491359,2083.5,2082.6,0.54628144]
[1772763736018,6.277,2083.6,2082.4,0.54628144]
[1772763736019,0.58491359,2083.3,2082.4,0.54628144]
[1772763736216,0.58491359,2083.3,2082.3,0.0046686]
[1772763736720,0.58491359,2083.3,2082.3,0.55095004]
[1772763736921,0.58491359,2083.2,2082.3,0.55095004]
[1772763738422,0.58491359,2083.2,2082.5,0.54628144]
[1772763738617,0.58491359,2083.5,2082.5,0.54628144]
[1772763741626,0.58491359,2083.5,2082.4,40.8]
[1772763741627,0.58491359,2083.5,2082.7,0.54628144]
[1772763741827,0.58491359,2083.9,2082.7,0.54628144]
[1772763742122,0.58491359,2083.7,2082.7,0.54628144]
[1772763748730,5.74789977,2083.6,2082.7,0.54628144]
[1772763748932,0.5853023,2083.8,2082.9,0.57069948]
[1772763749632,0.5853023,2083.6,2082.9,0.57069948]
[1772763752331,0.5853023,2083.6,2082.7,0.58474477]
[1772763752332,0.59408197,2083.4,2082.7,0.58474477]
[1772763753427,0.59408197,2083.6,2082.8,0.58474477]
[1772763754821,0.59408197,2083.8,2083.0,0.58474477]
[1772763755425,0.59926054,2084.0,2083.0,0.58474477]
[1772763756831,0.59926054,2084.0,2083.1,0.58474477]
[1772763758630,0.00517857,2084.0,2083.3,0.58474477]
[1772763758834,0.59408197,2084.4,2083.5,0.58474477]
[1772763759726,0.59408197,2084.9,2083.7,0.58474477]
[1772763759931,0.59408197,2084.7,2083.8,0.58474477]
[1772763760132,0.59408197,2084.7,2083.8,0.59071358]
[1772763760528,0.59408197,2084.7,2083.7,40.8]
[1772763760836,0.59408197,2084.4,2083.2,0.58474477]
[1772763761038,0.59408197,2084.2,2083.2,0.58474477]
[1772763761236,0.59408197,2084.2,2083.3,0.58474477]
[1772763761735,0.59408197,2084.2,2083.3,0.58867788]
[1772763765342,0.59408197,2084.0,2083.3,0.58867788]
[1772763765940,0.59408197,2084.1,2083.3,0.58867788]
[1772763766735,6.279,2084.3,2083.3,0.58867788]
[1772763766736,0.59408197,2084.3,2083.3,0.58867788]
[1772763768943,0.59408197,2084.3,2083.4,0.58474477]
[1772763770644,0.59408197,2084.1,2083.0,0.58474477]
[1772763770845,0.59408197,2083.9,2083.0,0.58474477]
[1772763771639,0.59408197,2083.9,2083.0,0.59021934]
[1772763771940,0.59408197,2084.1,2083.0,0.59021934]
[1772763772339,0.59408197,2084.5,2083.2,0.58474477]
[1772763772538,0.59408197,2084.3,2083.2,0.58474477]
[1772763772741,0.59408197,2084.3,2083.5,0.58474477]
[1772763772946,0.59408197,2084.5,2083.5,0.58474477]
[1772763774841,0.59408197,2084.5,2083.6,0.23995]
[1772763775047,6.87408197,2084.7,2083.8,0.58474477]
[1772763775344,0.59408197,2084.7,2083.8,0.58474477]
[1772763777345,0.59408197,2084.7,2084.0,0.58474477]
[1772763778147,0.59990834,2084.9,2084.1,0.58474477]
[1772763779351,0.00582637,2084.9,2084.1,0.58474477]
[1772763779942,0.59408197,2085.1,2084.4,0.54562442]
[1772763780348,0.54907921,2085.3,2084.4,0.54562442]
[1772763781054,0.55399922,2085.3,2084.4,0.54562442]
[1772763783450,0.00492001,2085.3,2084.4,0.54562442]
[1772763783755,0.54907921,2085.7,2084.7,0.54562442]
[1772763784053,6.28,2085.9,2084.7,0.54562442]
[1772763784054,0.54907921,2085.9,2084.7,0.54562442]
[1772763784453,0.54907921,2085.9,2084.9,0.54562442]
[1772763784644,0.00590165,2085.9,2085.0,0.54562442]
[1772763785350,0.55498086,2085.9,2085.0,0.54562442]
[1772763788955,0.00590165,2085.9,2085.0,0.54562442]